Cogmind - Beta 10.2 @@@ ROGUE MODE // 2021.12.22 @ 14:39:36 Player: 314159265 Result: Destroyed by as-79652 with Assembled Rifle Performance ------------- Evolutions (0) 0 Regions Visited (0) 0 Robots Destroyed (0) 0 Value Destroyed (0) 0 Prototype IDs (0) 0 Alien Tech Used (0) 0 Bonus (0) 0 TOTAL SCORE: 0 Bonus ------- None Cogmind --------- Core Integrity 0/250 Matter 235/300 Energy 99/100 System Corruption 5% Temperature Cool (0) Movement Rolling (100) Location -11/Scrapyard Parts ------- > --- POWER (1) -------- (None) > --- PROPULSION (2) --- Compact Wheel > --- UTILITY (2) ------ Small Storage Unit > --- WEAPON (2) ------- (None) > --- INVENTORY (6) ---- Light Ion Engine Light Treads Light Treads Aluminum Leg Aluminum Leg Peak State ------------ > --- POWER ------------ Ion Engine > --- PROPULSION ------- Light Treads Light Treads > --- UTILITY ---------- Small Storage Unit > --- WEAPON ----------- Small Laser Small Laser > --- INVENTORY -------- Light Ion Engine Aluminum Leg Compact Wheel Compact Wheel [Rating: 6] Favorites ----------- Power Ion Engine Engine Ion Engine Propulsion Aluminum Leg Treads Light Treads Leg Aluminum Leg Wheel Compact Wheel Utility Small Storage Unit Storage Small Storage Unit Weapon Small Laser Energy Gun Small Laser Build | -11 ------- Run | Scr Slots Evolved . | . Power . | . Propulsion . | . Utility . | . Weapon . | . Parts Attached 13 | 13 Power 1 | 1 Engine 1 | 1 Core . | . Reactor . | . Propulsion 8 | 8 Treads 2 | 2 Leg 2 | 2 Wheel 4 | 4 Hover . | . Flight . | . Utility 1 | 1 Device . | . Storage 1 | 1 Processor . | . Hackware . | . Protection . | . Artifact . | . Weapon 3 | 3 Energy Gun 3 | 3 Energy Cannon . | . Ballistic Gun . | . Ballistic Cannon . | . Launcher . | . Special Weapon . | . Impact Weapon . | . Slashing Weapon . | . Piercing Weapon . | . Special Melee Weapon . | . Unidentified Prototypes . | . Parts Lost 5 | 5 Power 1 | 1 Propulsion 1 | 1 Utility . | . Weapon 3 | 3 Highest Loss Streak 3 | 3 Average Slot Usage (%) . | . Naked Turns . | . Heaviest Build 11 | 11 Greatest Support 40 | 40 Greatest Overweight (x) . | . Average Overweight (x) . | . Largest Inventory Capacity 6 | 6 Average Capacity 5 | 5 Most Carried 6 | 6 Average Carried 5 | 5 Final Capacity 6 | 6 Final Carried 5 | 5 Class Distribution -------------------- None Dominant Class ---------------- None Resources | -11 ----------- Run | Scr Matter Collected 240 | 240 Remotely . | . Salvage Created 7 | 7 Parts . | . Haulers Intercepted . | . Recyclers Shooed . | . Parts Field Recycled . | . Retrieved Matter . | . Parts Self-Destructed . | . Prevented . | . Kills | -11 ------- Run | Scr Combat Hostiles Destroyed 1 | 1 Guns 1 | 1 Classes Destroyed 1 | 1 Assembled 1 | 1 Best Kill Streak 1 | 1 Combat Bots Only 1 | 1 Max Kills in Single Turn 1 | 1 Gunslinging . | . Exploded . | . Melee . | . Uniques/NPCs Destroyed . | . Combat | -11 -------- Run | Scr Damage Taken 642 | 642 Core 255 | 255 Absorbed by Shields . | . Core Remaining (%) . | . Volleys Fired 12 | 12 Largest 2 | 2 Hottest 80 | 80 Shots Fired 20 | 20 Gun 20 | 20 Cannon . | . Launcher . | . Special . | . Kinetic . | . Thermal 20 | 20 Explosive . | . Electromagnetic . | . Robot Hit Streak 2 | 2 Robot Miss Streak 2 | 2 Penetration Max . | . Secondary Targets 1 | 1 Max Gunslinging Chain 1 | 1 Shots Hit Robots 12 | 12 Core Hits 3 | 3 Critical Hits . | . Critical Kills . | . Critical Parts Destroyed . | . Melee Attacks . | . Impact . | . Slashing . | . Piercing . | . Sneak Attacks . | . Combat Hostiles . | . Follow-up Attacks . | . Damage Inflicted 109 | 109 Guns 109 | 109 Cannons . | . Explosions . | . Melee . | . Ramming . | . Kinetic . | . Thermal 109 | 109 Explosive . | . Electromagnetic . | . Impact . | . Slashing . | . Piercing . | . Highest Corruption 5 | 5 Average Corruption 5 | 5 Corruption Purged . | . Effects 3 | 3 Energy Discharges 1 | 1 Misfires 1 | 1 Targeting Errors 1 | 1 Overload Shots . | . Overflow Damage . | . Projectiles . | . Explosions . | . Melee . | . Knockbacks . | . Impact . | . Kinetic . | . Secondary . | . Self-Inflicted Damage . | . Shots . | . Rammed . | . Targets Rammed . | . Kicked . | . Crushed . | . Highest Temperature 214 | 214 Average Temperature 97 | 97 Received Heat Transfer 200 | 200 Siege Activations . | . Robots Corrupted . | . Combat Hostiles . | . Parts Fried . | . Impact Corruptions . | . Robots Melted . | . Combat Hostiles . | . Parts Melted . | . Heat Transferred 250 | 250 Parts Sabotaged . | . Parts Stolen . | . Parts Stripped . | . Power Chain Reactions . | . Missiles Intercepted . | . Alert | -11 ------- Run | Scr Peak Influence . | . Initial . | . Average . | . Maximum Alert Level . | . Low Security (%) 100 | 100 Level 1 . | . Level 2 . | . Level 3 . | . Level 4 . | . Level 5 . | . High Security . | . Max Security . | . Squads Dispatched . | . Investigation . | . Extermination . | . Reinforcement . | . Assault . | . Garrison . | . Intercept . | . Construction Impeded . | . Haulers Reinforced . | . Stealth | -11 --------- Run | Scr Distress Signals . | . Communications Jammed . | . Distress Signals . | . Times Spotted 4 | 4 Peak Tracking Total 2 | 2 Tactical Retreats 1 | 1 Traps | -11 ------- Run | Scr Traps Triggered . | . Indirectly . | . Trap Hack Attempts . | . Triggered . | . Disarmed . | . Reprogrammed . | . Reused . | . Traps Extracted . | . Installed . | . Triggered . | . Machines | -11 ---------- Run | Scr Machines Disabled . | . Max in Single Turn . | . Machines Sabotaged . | . Garrisons Compromised . | . Overloaded Fab Kills . | . Fab Network Shutdowns . | . Hacking | -11 --------- Run | Scr Machines Accessed . | . Terminals . | . Fabricators . | . Repair Stations . | . Recycling Units . | . Scanalyzers . | . Garrison Access . | . Total Hacks . | . Successful . | . Failed . | . Catastrophic . | . Database Lockouts . | . Manual . | . Terminals . | . Fabricators . | . Repair Stations . | . Recycling Units . | . Scanalyzers . | . Garrison Access . | . Terminal Hacks . | . Fabricator Hacks . | . Repair Station Hacks . | . Recycling Unit Hacks . | . Scanalyzer . | . Garrison Access Hacks . | . Unauthorized Hacks . | . Terminals . | . Fabricators . | . Repair Stations . | . Recycling Units . | . Scanalyzers . | . Garrison Access . | . Data Cores Recovered . | . Used . | . Hacking Detections . | . Full Trace Events . | . Feedback Events . | . Feedback Blocked . | . Robot Schematics Acquired . | . Robots Built . | . Matter . | . Time . | . Total Robot Build Rating . | . Part Schematics Acquired . | . Parts Built . | . Matter . | . Time . | . Total Part Build Rating . | . Parts Repaired . | . Time . | . Parts Recycled . | . Recycled Matter . | . Retrieved Matter . | . Retrieved Components . | . Parts Scanalyzed . | . Part Schematics Acquired . | . Parts Damaged . | . Bothacking | -11 ------------ Run | Scr Used RIF Installer . | . Robots Hacked . | . Non-combat . | . Combat . | . Robot Hacks Applied . | . Relay Couplers Released . | . Robots Rewired . | . Allies Hacked . | . Hacks Repelled . | . Allies | -11 -------- Run | Scr Total Allies . | . Largest Group . | . Highest-Rated Group . | . Highest-Rated Ally . | . Total Orders . | . Ally Attacks . | . Total Damage . | . Kills . | . Allies Corrupted . | . Allies Melted . | . Intel | -11 ------- Run | Scr Robot Analysis Total . | . Derelict Logs Recovered . | . Drone Launches . | . Drone Recoveries . | . Exploration | -11 ------------- Run | Scr Turns Passed 1529 | 1529 Spaces Moved 1116 | 1116 Core 14 | 14 Treads 16 | 16 Legs 1055 | 1055 Wheels 31 | 31 Hover . | . Flight . | . Fastest Speed 50 | 50 Average Speed 119 | 119 Slowest Speed 160 | 160 Overloaded Moves . | . Propulsion Burnouts . | . Robots Hopped . | . Cave-ins Triggered . | . Exploration Rate (%) 69 | 69 Regions Visited . Branch Regions . Pre-discovered Areas . | . Known Exits Taken . | . Unknown Exits Taken . | . Scrap Searched . | . Spaces Dug . | . Terrain Destroyed . | . Melee . | . Projectile . | . AOE . | . Terrain Rammed . | . Walls Destroyed . | . Machines Disabled . | . Actions | -11 --------- Run | Scr Total 1291 | 1291 Wait 143 | 143 Move 1116 | 1116 Hop . | . Pick Up 7 | 7 Fast Attach 5 | 5 Attach 2 | 2 Detach . | . Swap 6 | 6 Drop . | . Fire 12 | 12 Melee . | . Ram . | . Kick . | . Crush . | . Escape Stasis . | . Rewire . | . Trap . | . Miscellaneous . | . Route ------- -11/Scrapyard (discovered 1 exit: [*Mat]) History --------- Turn | Location | Event 9 | -11/Scrapyard | Discovered new exit (range 16) 1352 | -11/Scrapyard | Assembled infested the area 1493 | -11/Scrapyard | Core integrity fell below 50% 1515 | -11/Scrapyard | Core integrity fell below 20% 1530 | -11/Scrapyard | Destroyed by as-79652 with Assembled Rifle Last Messages --------------- 01399_ T-07 Excavator system terminally corrupted. 01402_ as-53978 sneak attacks. 01402_ R-06 Scavenger system corrupted by crushing effect. 01403_ R-06 Scavenger system terminally corrupted. 01421_ Sml. Laser destroyed. 01421_ System corrupted by crushing effect (+5). 01427_ Knocked back. 01427_ as-53978 destroyed. 01427_ Switching to secondary target: as-06552. 01433_ System corrupted: Sml. Laser targeting data glitched. 01434_ Sml. Laser destroyed. 01444_ Destroyed Asb. F-torch. 01446_ System corrupted: Energy discharge (-62). 01448_ Acquired 7 matter. 01483_ Ion Engine destroyed. 01496_ System corrupted: FCS attempts to trigger Sml. Laser. 01496_ System corrupted: Sml. Laser misfires. 01507_ Sml. Laser destroyed. 01518_ Com. Wheel destroyed. [Achievement: First Step to Greatness] Map ----- +----------------------------------------------------+ | # #??# # #????????# #???????????? | | # #??# #????????# #???????????? | | # #??# # #????# ??# #???????????? | | ####### #??# ####????? ?#=%#???????????? | | ??????# #??# # ###### # # %##########??? | | ??????# #??# *! # #### | | ??????# #??########### # # | | ??????# #????????????############### # # | | ####### #??????????????????????????# % # | | # #??????????????????????????# # # | | # #????#######???????????????# # #### | | # #????# #????????????#### %#####??# | | #???# ##########???# #???# | | # #???# # #???# #???# | | # #????? # #???# ######## | | # ######## ### ##### | | # | | ####### ### # ## | | ??????#### ###### ### ##### < # | | ?????????###????###?# #???# # | | ????????????????????# #???########## | | ????????????????????#### ####????????????# | | ???????????????????????# #???????????????# | | ???????????????????????# #???????????????# | | ???????????????????????# #???????????????# | | ????????????############ @#???????????????# | | ????????????# ## #???????????????# | | ????????????# ## ##??????????????######## | | ????????????# # #?????????????????????? | | ????????????# #?????????????????????? | | ????????????# # #?????????????????????? | | ????????????# # #?????????????????????? | | ????????????# ## ##########?????????????? | | ????????????# ## # #?????????????? | | ????????????############aa# #?????????????? | | ??????????????# #?????????????? | | ??????????????# # # #?????????????? | | ??????????????# # # #?????????????? | | ??????????????# # # #?????????????? | | ??????????????# # # #?????????????? | | ??????????????# # # #?????????????? | | ??????????????# # # #?????????????? | | ??????????????# # ##########?????????????? | | ??????????????# # # #??????????????????????? | | ??????????????####?##### #??????????????????????? | | ???????????########????# #??????????????????????? | | ???????????# ????# #??????????????????????? | | ???????????# ##### #??????????????????????? | | ???????????# # #??????????????????????? | | ???????????# #??????????????????????? | +----------------------------------------------------+ Best States ------------- Heat Dissipation 25 Energy Generation 10 Energy Capacity 250 Matter Stores 245 Matter Capacity 300 Sight Range 16 Terrain Scan Density 10 Evasion (%) 50 Recoil Reduction 2 Item Schematics ----------------- None Robot Schematics ------------------ None Fabricated ------------ Nothing Alien Tech Used ----------------- None Achievements -------------- Curiosity Killed The Cat First Step to Greatness Challenges ------------ None Game ------ Seed WeaponGaussClaw Manual? 0 Play Time 00:50:36 Cumulative 6.4 hours Start 2021.12.22 @ 14:00:15 End 2021.12.22 @ 14:39:36 Sessions 0 Manual Loads 0 Difficulty Rogue Special Mode None Game No. 8 Rogue 8 Adventurer 0 Explorer 0 Win Type - Total 0 Types 0/0/0/0/0/0/0/0/0 Lore% 3 Gallery% 8 Achievement% 4 Wizard Run 0 Options --------- ASCII 0 Keyboard 0 Movement Mouse Keybinds 0 Fullscreen 1 Font 18/X11 Map View 76x50 Tactical HUD 1 Map Filters NONE Filters NONE Steam 1 RUN: defa5331-a4c1-4e7b-badb-2c0fa6a51891